{"text_format":"3","workbook":"xlsx","n_sheets":1,"sheets":["Orçamento das Despesas"],"not_rendered":{"charts":2,"defined_names":3},"read":"whole","date_system":"1900"}

{"sheet":"Orçamento das Despesas","index":0,"n_rows":47,"n_cols":7,"rows_kept":47,"merged":[[0,1,0,4],[0,5,0,6],[16,1,16,6],[48,1,48,6]]}
[null,"Orçamento das Despesas",{"$nulls":3},"CONTOSO, 2013"]
[]
[]
[null," ORÇAMENTO DO PESSOAL"]
{"$rows_empty":7}
[null,"ESTADO","PESSOAL","ORÇAMENTO","EFETIVO","DIFERENÇA (€)","DIFERENÇA (%)"]
[null,{"$f":"IFERROR(tabelaDespesasPessoal[[#This Row],[EFETIVO]]/tabelaDespesasPessoal[[#This Row],[ORÇAMENTO]],\"\")","v":{"v":1.13,"d":"$1.13"}},"Escritório",{"v":500,"d":"500.00 €"},{"v":565,"d":"565.00 €"},{"$f":"tabelaDespesasPessoal[[#This Row],[ORÇAMENTO]]-tabelaDespesasPessoal[[#This Row],[EFETIVO]]","v":{"v":-65,"d":"-65.00 €"}},{"$f":"IFERROR(tabelaDespesasPessoal[DIFERENÇA (€)]/tabelaDespesasPessoal[ORÇAMENTO],\"\")","v":{"v":-0.13,"d":"-13%"}}]
[null,{"$f":"IFERROR(tabelaDespesasPessoal[[#This Row],[EFETIVO]]/tabelaDespesasPessoal[[#This Row],[ORÇAMENTO]],\"\")","v":{"v":1.2,"d":"$1.20"}},"Loja",{"v":125,"d":"125.00 €"},{"v":150,"d":"150.00 €"},{"$f":"tabelaDespesasPessoal[[#This Row],[ORÇAMENTO]]-tabelaDespesasPessoal[[#This Row],[EFETIVO]]","v":{"v":-25,"d":"-25.00 €"}},{"$f":"IFERROR(tabelaDespesasPessoal[DIFERENÇA (€)]/tabelaDespesasPessoal[ORÇAMENTO],\"\")","v":{"v":-0.2,"d":"-20%"}}]
[null,{"$f":"IFERROR(tabelaDespesasPessoal[[#This Row],[EFETIVO]]/tabelaDespesasPessoal[[#This Row],[ORÇAMENTO]],\"\")","v":{"v":1,"d":"$1.00"}},"Vendedores",{"v":100,"d":"100.00 €"},{"v":100,"d":"100.00 €"},{"$f":"tabelaDespesasPessoal[[#This Row],[ORÇAMENTO]]-tabelaDespesasPessoal[[#This Row],[EFETIVO]]","v":{"v":0,"d":"0.00 €"}},{"$f":"IFERROR(tabelaDespesasPessoal[DIFERENÇA (€)]/tabelaDespesasPessoal[ORÇAMENTO],\"\")","v":{"v":0,"d":"0%"}}]
[null,{"$f":"IFERROR(tabelaDespesasPessoal[[#This Row],[EFETIVO]]/tabelaDespesasPessoal[[#This Row],[ORÇAMENTO]],\"\")","v":{"v":0.9,"d":"$0.90"}},"Outros",{"v":100,"d":"100.00 €"},{"v":90,"d":"90.00 €"},{"$f":"tabelaDespesasPessoal[[#This Row],[ORÇAMENTO]]-tabelaDespesasPessoal[[#This Row],[EFETIVO]]","v":{"v":10,"d":"10.00 €"}},{"$f":"IFERROR(tabelaDespesasPessoal[DIFERENÇA (€)]/tabelaDespesasPessoal[ORÇAMENTO],\"\")","v":{"v":0.1,"d":"10%"}}]
[]
[]
[null," ORÇAMENTO DE FUNCIONAMENTO"]
{"$rows_empty":7}
[null,"ESTADO","DE FUNCIONAMENTO","ORÇAMENTO","EFETIVO","DIFERENÇA (€)","DIFERENÇA (%)"]
[null,{"$f":"IFERROR(tabelaDespesasOperacionais[[#This Row],[EFETIVO]]/tabelaDespesasOperacionais[[#This Row],[ORÇAMENTO]],\"\")","v":{"v":0.98,"d":"$0.98"}},"Publicidade",{"v":250,"d":"250.00 €"},{"v":245,"d":"245.00 €"},{"$f":"tabelaDespesasOperacionais[[#This Row],[ORÇAMENTO]]-tabelaDespesasOperacionais[[#This Row],[EFETIVO]]","v":{"v":5,"d":"5.00 €"}},{"$f":"IFERROR(tabelaDespesasOperacionais[[#This Row],[DIFERENÇA (€)]]/tabelaDespesasOperacionais[[#This Row],[ORÇAMENTO]],\"\")","v":{"v":0.02,"d":"2%"}}]
[null,{"$f":"IFERROR(tabelaDespesasOperacionais[[#This Row],[EFETIVO]]/tabelaDespesasOperacionais[[#This Row],[ORÇAMENTO]],\"\")","v":{"v":1.2,"d":"$1.20"}},"Dívidas",{"v":125,"d":"125.00 €"},{"v":150,"d":"150.00 €"},{"$f":"tabelaDespesasOperacionais[[#This Row],[ORÇAMENTO]]-tabelaDespesasOperacionais[[#This Row],[EFETIVO]]","v":{"v":-25,"d":"-25.00 €"}},{"$f":"IFERROR(tabelaDespesasOperacionais[[#This Row],[DIFERENÇA (€)]]/tabelaDespesasOperacionais[[#This Row],[ORÇAMENTO]],\"\")","v":{"v":-0.2,"d":"-20%"}}]
[null,{"$f":"IFERROR(tabelaDespesasOperacionais[[#This Row],[EFETIVO]]/tabelaDespesasOperacionais[[#This Row],[ORÇAMENTO]],\"\")","v":{"v":1,"d":"$1.00"}},"Vantagens",{"v":100,"d":"100.00 €"},{"v":100,"d":"100.00 €"},{"$f":"tabelaDespesasOperacionais[[#This Row],[ORÇAMENTO]]-tabelaDespesasOperacionais[[#This Row],[EFETIVO]]","v":{"v":0,"d":"0.00 €"}},{"$f":"IFERROR(tabelaDespesasOperacionais[[#This Row],[DIFERENÇA (€)]]/tabelaDespesasOperacionais[[#This Row],[ORÇAMENTO]],\"\")","v":{"v":0,"d":"0%"}}]
[null,{"$f":"IFERROR(tabelaDespesasOperacionais[[#This Row],[EFETIVO]]/tabelaDespesasOperacionais[[#This Row],[ORÇAMENTO]],\"\")","v":{"v":0.9,"d":"$0.90"}},"Consumíveis",{"v":100,"d":"100.00 €"},{"v":90,"d":"90.00 €"},{"$f":"tabelaDespesasOperacionais[[#This Row],[ORÇAMENTO]]-tabelaDespesasOperacionais[[#This Row],[EFETIVO]]","v":{"v":10,"d":"10.00 €"}},{"$f":"IFERROR(tabelaDespesasOperacionais[[#This Row],[DIFERENÇA (€)]]/tabelaDespesasOperacionais[[#This Row],[ORÇAMENTO]],\"\")","v":{"v":0.1,"d":"10%"}}]
[null,{"$f":"IFERROR(tabelaDespesasOperacionais[[#This Row],[EFETIVO]]/tabelaDespesasOperacionais[[#This Row],[ORÇAMENTO]],\"\")","v":""},"Portes",null,null,{"$f":"tabelaDespesasOperacionais[[#This Row],[ORÇAMENTO]]-tabelaDespesasOperacionais[[#This Row],[EFETIVO]]","v":{"v":0,"d":"0.00 €"}},{"$f":"IFERROR(tabelaDespesasOperacionais[[#This Row],[DIFERENÇA (€)]]/tabelaDespesasOperacionais[[#This Row],[ORÇAMENTO]],\"\")","v":""}]
[null,{"$f":"IFERROR(tabelaDespesasOperacionais[[#This Row],[EFETIVO]]/tabelaDespesasOperacionais[[#This Row],[ORÇAMENTO]],\"\")","v":""},"Renda ou Hipoteca",null,null,{"$f":"tabelaDespesasOperacionais[[#This Row],[ORÇAMENTO]]-tabelaDespesasOperacionais[[#This Row],[EFETIVO]]","v":{"v":0,"d":"0.00 €"}},{"$f":"IFERROR(tabelaDespesasOperacionais[[#This Row],[DIFERENÇA (€)]]/tabelaDespesasOperacionais[[#This Row],[ORÇAMENTO]],\"\")","v":""}]
[null,{"$f":"IFERROR(tabelaDespesasOperacionais[[#This Row],[EFETIVO]]/tabelaDespesasOperacionais[[#This Row],[ORÇAMENTO]],\"\")","v":""},"Despesas de vendas",null,null,{"$f":"tabelaDespesasOperacionais[[#This Row],[ORÇAMENTO]]-tabelaDespesasOperacionais[[#This Row],[EFETIVO]]","v":{"v":0,"d":"0.00 €"}},{"$f":"IFERROR(tabelaDespesasOperacionais[[#This Row],[DIFERENÇA (€)]]/tabelaDespesasOperacionais[[#This Row],[ORÇAMENTO]],\"\")","v":""}]
[null,{"$f":"IFERROR(tabelaDespesasOperacionais[[#This Row],[EFETIVO]]/tabelaDespesasOperacionais[[#This Row],[ORÇAMENTO]],\"\")","v":""},"Impostos",null,null,{"$f":"tabelaDespesasOperacionais[[#This Row],[ORÇAMENTO]]-tabelaDespesasOperacionais[[#This Row],[EFETIVO]]","v":{"v":0,"d":"0.00 €"}},{"$f":"IFERROR(tabelaDespesasOperacionais[[#This Row],[DIFERENÇA (€)]]/tabelaDespesasOperacionais[[#This Row],[ORÇAMENTO]],\"\")","v":""}]
[null,{"$f":"IFERROR(tabelaDespesasOperacionais[[#This Row],[EFETIVO]]/tabelaDespesasOperacionais[[#This Row],[ORÇAMENTO]],\"\")","v":""},"Utilitários",null,null,{"$f":"tabelaDespesasOperacionais[[#This Row],[ORÇAMENTO]]-tabelaDespesasOperacionais[[#This Row],[EFETIVO]]","v":{"v":0,"d":"0.00 €"}},{"$f":"IFERROR(tabelaDespesasOperacionais[[#This Row],[DIFERENÇA (€)]]/tabelaDespesasOperacionais[[#This Row],[ORÇAMENTO]],\"\")","v":""}]
[null,{"$f":"IFERROR(tabelaDespesasOperacionais[[#This Row],[EFETIVO]]/tabelaDespesasOperacionais[[#This Row],[ORÇAMENTO]],\"\")","v":""},"Outros",null,null,{"$f":"tabelaDespesasOperacionais[[#This Row],[ORÇAMENTO]]-tabelaDespesasOperacionais[[#This Row],[EFETIVO]]","v":{"v":0,"d":"0.00 €"}},{"$f":"IFERROR(tabelaDespesasOperacionais[[#This Row],[DIFERENÇA (€)]]/tabelaDespesasOperacionais[[#This Row],[ORÇAMENTO]],\"\")","v":""}]
[null,{"$f":"IFERROR(tabelaDespesasOperacionais[[#This Row],[EFETIVO]]/tabelaDespesasOperacionais[[#This Row],[ORÇAMENTO]],\"\")","v":""},"Seguros",null,null,{"$f":"tabelaDespesasOperacionais[[#This Row],[ORÇAMENTO]]-tabelaDespesasOperacionais[[#This Row],[EFETIVO]]","v":{"v":0,"d":"0.00 €"}},{"$f":"IFERROR(tabelaDespesasOperacionais[[#This Row],[DIFERENÇA (€)]]/tabelaDespesasOperacionais[[#This Row],[ORÇAMENTO]],\"\")","v":""}]
[null,{"$f":"IFERROR(tabelaDespesasOperacionais[[#This Row],[EFETIVO]]/tabelaDespesasOperacionais[[#This Row],[ORÇAMENTO]],\"\")","v":""},"Taxa de juro",null,null,{"$f":"tabelaDespesasOperacionais[[#This Row],[ORÇAMENTO]]-tabelaDespesasOperacionais[[#This Row],[EFETIVO]]","v":{"v":0,"d":"0.00 €"}},{"$f":"IFERROR(tabelaDespesasOperacionais[[#This Row],[DIFERENÇA (€)]]/tabelaDespesasOperacionais[[#This Row],[ORÇAMENTO]],\"\")","v":""}]
[null,{"$f":"IFERROR(tabelaDespesasOperacionais[[#This Row],[EFETIVO]]/tabelaDespesasOperacionais[[#This Row],[ORÇAMENTO]],\"\")","v":""},"Telefone",null,null,{"$f":"tabelaDespesasOperacionais[[#This Row],[ORÇAMENTO]]-tabelaDespesasOperacionais[[#This Row],[EFETIVO]]","v":{"v":0,"d":"0.00 €"}},{"$f":"IFERROR(tabelaDespesasOperacionais[[#This Row],[DIFERENÇA (€)]]/tabelaDespesasOperacionais[[#This Row],[ORÇAMENTO]],\"\")","v":""}]
[null,{"$f":"IFERROR(tabelaDespesasOperacionais[[#This Row],[EFETIVO]]/tabelaDespesasOperacionais[[#This Row],[ORÇAMENTO]],\"\")","v":""},"Manutenção e reparações",null,null,{"$f":"tabelaDespesasOperacionais[[#This Row],[ORÇAMENTO]]-tabelaDespesasOperacionais[[#This Row],[EFETIVO]]","v":{"v":0,"d":"0.00 €"}},{"$f":"IFERROR(tabelaDespesasOperacionais[[#This Row],[DIFERENÇA (€)]]/tabelaDespesasOperacionais[[#This Row],[ORÇAMENTO]],\"\")","v":""}]
[null,{"$f":"IFERROR(tabelaDespesasOperacionais[[#This Row],[EFETIVO]]/tabelaDespesasOperacionais[[#This Row],[ORÇAMENTO]],\"\")","v":""},"Custas judiciais",null,null,{"$f":"tabelaDespesasOperacionais[[#This Row],[ORÇAMENTO]]-tabelaDespesasOperacionais[[#This Row],[EFETIVO]]","v":{"v":0,"d":"0.00 €"}},{"$f":"IFERROR(tabelaDespesasOperacionais[[#This Row],[DIFERENÇA (€)]]/tabelaDespesasOperacionais[[#This Row],[ORÇAMENTO]],\"\")","v":""}]
[null,{"$f":"IFERROR(tabelaDespesasOperacionais[[#This Row],[EFETIVO]]/tabelaDespesasOperacionais[[#This Row],[ORÇAMENTO]],\"\")","v":""},"Amortização",null,null,{"$f":"tabelaDespesasOperacionais[[#This Row],[ORÇAMENTO]]-tabelaDespesasOperacionais[[#This Row],[EFETIVO]]","v":{"v":0,"d":"0.00 €"}},{"$f":"IFERROR(tabelaDespesasOperacionais[[#This Row],[DIFERENÇA (€)]]/tabelaDespesasOperacionais[[#This Row],[ORÇAMENTO]],\"\")","v":""}]
[null,{"$f":"IFERROR(tabelaDespesasOperacionais[[#This Row],[EFETIVO]]/tabelaDespesasOperacionais[[#This Row],[ORÇAMENTO]],\"\")","v":""},"Expedição",null,null,{"$f":"tabelaDespesasOperacionais[[#This Row],[ORÇAMENTO]]-tabelaDespesasOperacionais[[#This Row],[EFETIVO]]","v":{"v":0,"d":"0.00 €"}},{"$f":"IFERROR(tabelaDespesasOperacionais[[#This Row],[DIFERENÇA (€)]]/tabelaDespesasOperacionais[[#This Row],[ORÇAMENTO]],\"\")","v":""}]
[null,{"$f":"IFERROR(tabelaDespesasOperacionais[[#This Row],[EFETIVO]]/tabelaDespesasOperacionais[[#This Row],[ORÇAMENTO]],\"\")","v":""},"Armazenamento",null,null,{"$f":"tabelaDespesasOperacionais[[#This Row],[ORÇAMENTO]]-tabelaDespesasOperacionais[[#This Row],[EFETIVO]]","v":{"v":0,"d":"0.00 €"}},{"$f":"IFERROR(tabelaDespesasOperacionais[[#This Row],[DIFERENÇA (€)]]/tabelaDespesasOperacionais[[#This Row],[ORÇAMENTO]],\"\")","v":""}]
[null,{"$f":"IFERROR(tabelaDespesasOperacionais[[#This Row],[EFETIVO]]/tabelaDespesasOperacionais[[#This Row],[ORÇAMENTO]],\"\")","v":""},"Outros",null,null,{"$f":"tabelaDespesasOperacionais[[#This Row],[ORÇAMENTO]]-tabelaDespesasOperacionais[[#This Row],[EFETIVO]]","v":{"v":0,"d":"0.00 €"}},{"$f":"IFERROR(tabelaDespesasOperacionais[[#This Row],[DIFERENÇA (€)]]/tabelaDespesasOperacionais[[#This Row],[ORÇAMENTO]],\"\")","v":""}]
[null,null,"Total das Despesas",{"$f":"SUBTOTAL(109,tabelaDespesasOperacionais[ORÇAMENTO],tabelaDespesasPessoal[ORÇAMENTO])","v":{"v":1400,"d":"1,400.00 €"}},{"$f":"SUBTOTAL(109,tabelaDespesasOperacionais[EFETIVO],tabelaDespesasPessoal[EFETIVO])","v":{"v":1490,"d":"1,490.00 €"}},{"$f":"SUBTOTAL(109,tabelaDespesasOperacionais[DIFERENÇA (€)],tabelaDespesasPessoal[DIFERENÇA (€)])","v":{"v":-90,"d":"-90.00 €"}},{"$f":"IFERROR(SUM(tabelaDespesasOperacionais[[#Totals],[DIFERENÇA (€)]]/tabelaDespesasOperacionais[[#Totals],[ORÇAMENTO]]),\"\")","v":{"v":-0.06428571428571428,"d":"-6%"}}]